bitfinex/quotes_SOLUSD_20240905
["timestamp","ask_amount","ask_price","bid_price","bid_amount"]
[1725503129261,8.72290972,133.88,133.82,63.6811]
[1725503129463,7.4698,133.88,133.82,63.6811]
[1725503129630,23.76470972,133.89,133.83,1.49397877]
[1725503130440,22.5116,133.89,133.82,63.6811]
[1725503131234,22.5116,133.89,133.85,7.471]
[1725503134156,1.25310972,133.88,133.84,7.4715]
[1725503134361,22.5116,133.89,133.84,7.4715]
[1725503135238,8.72280972,133.88,133.83,7.472]
[1725503135863,8.72280972,133.88,133.84,45.0]
[1725503136246,7.47,133.87,133.83,7.472]
[1725503137644,8.72240972,133.88,133.83,7.472]
[1725503137845,8.72240972,133.88,133.84,45.0]
[1725503140873,8.72240972,133.88,133.84,52.4715]
[1725503142364,1.25310972,133.88,133.85,7.4705]
[1725503142568,1.25310972,133.88,133.84,71.1498]
[1725503142864,23.76500972,133.89,133.84,71.1498]
[1725503143469,23.76500972,133.89,133.84,63.6784]
[1725503143470,1.25310972,133.89,133.84,63.6784]
[1725503143658,1.25310972,133.92,133.86,18.6756]
[1725503143969,1.25310972,133.92,133.87,45.0]
[1725503145474,7.4672,133.92,133.88,7.4691]
[1725503146170,8.72030972,133.92,133.88,7.4691]
[1725503146562,7.4672,133.92,133.88,7.4691]
[1725503147649,8.72030972,133.92,133.88,7.4691]
[1725503149869,7.4672,133.92,133.88,7.4691]
[1725503150067,8.71910972,133.94,133.9,7.4682]
[1725503150650,8.71910972,133.94,133.89,52.4686]
[1725503150878,16.2647,133.96,133.9,1.49339125]
[1725503151172,16.2647,133.96,133.92,26.1342]
[1725503151366,17.51780972,133.97,133.92,26.1342]
[1725503151547,7.4647,133.97,133.92,26.1342]
[1725503152753,7.466,133.95,133.93,1.49304758]
[1725503152954,7.465,133.96,133.91,7.4671]
[1725503153155,7.465,133.96,133.92,52.467]
[1725503153384,7.4644,133.97,133.93,1.49304885]
[1725503153574,7.4644,133.97,133.92,7.467]
[1725503156281,7.4656,133.95,133.91,26.1359]
[1725503156464,1.25310972,133.94,133.91,18.6684]
[1725503161271,1.25310972,133.94,133.91,26.1356]
[1725503161485,8.71860972,133.95,133.91,26.1356]
[1725503161784,18.659,133.99,133.91,26.1356]
[1725503161785,7.4653,133.96,133.91,26.1356]
[1725503161958,7.4653,133.96,133.92,45.0]
[1725503162665,1.25310972,133.98,133.93,7.4661]
[1725503162866,1.25310972,133.99,133.93,7.4661]
[1725503164092,7.4648,133.97,133.92,52.4671]
[1725503164383,26.42536635,134.0,133.92,52.4671]
[1725503164384,8.71800972,133.96,133.92,52.4671]
[1725503164568,7.4649,133.96,133.92,52.4671]
[1725503166271,7.4649,133.96,133.92,45.0]
[1725503167506,7.4649,133.96,133.91,26.1359]
[1725503168685,1.25310972,133.95,133.91,26.1359]
[1725503168872,1.25310972,133.95,133.89,7.4686]
[1725503169468,7.4675,133.92,133.88,18.6728]
[1725503172271,8.72080972,133.91,133.87,7.4695]
[1725503174378,7.4677,133.91,133.87,7.4695]
[1725503175889,7.4677,133.91,133.85,56.0298]
[1725503175890,7.4691,133.89,133.85,26.1472]
[1725503176205,8.72290972,133.88,133.84,7.4715]
[1725503176387,50.61104969,133.96,133.82,18.6813]
[1725503176388,22.7416,133.9,133.82,18.6813]
[1725503176701,7.4711,133.85,133.79,18.6852]
[1725503177175,7.4711,133.85,133.8,7.4733]
[1725503178001,7.4711,133.85,133.81,52.4732]
[1725503178293,8.72240972,133.89,133.81,63.6825]
[1725503178600,8.72240972,133.89,133.84,7.4714]
[1725503183301,7.4695,133.88,133.83,7.472]
[1725503183481,8.72310972,133.87,133.83,7.472]
[1725503183680,1.25310972,133.86,133.83,7.472]
[1725503185008,1.25310972,133.86,133.82,7.4726]
[1725503185983,7.47,133.87,133.82,7.4726]
[1725503191098,1.25310972,133.86,133.8,7.4738]
[1725503191305,7.4722,133.83,133.78,18.6866]
[1725503191505,1.25310972,133.82,133.78,18.6866]
[1725503192304,1.25310972,133.82,133.79,7.4742]
[1725503193504,1.25310972,133.82,133.78,18.6866]
[1725503193712,1.25310972,133.82,133.78,26.1615]
[1725503194388,1.25310972,133.82,133.77,7.4754]
[1725503194595,1.25310972,133.84,133.77,7.4754]
[1725503195508,7.4733,133.81,133.76,7.4759]
[1725503195706,8.72690972,133.8,133.75,18.6907]
[1725503196015,7.4738,133.8,133.75,18.6907]
[1725503196584,7.4738,133.8,133.75,26.1672]
[1725503196805,7.4744,133.79,133.75,18.6907]
[1725503197007,18.6812,133.83,133.74,7.4771]
[1725503197310,1.25310972,133.82,133.74,7.4771]
[1725503197816,7.4744,133.79,133.75,7.4765]
[1725503198108,7.4739,133.8,133.75,7.4765]
[1725503198305,1.25310972,133.79,133.75,7.4765]
[1725503201104,8.72760972,133.79,133.74,26.1693]
[1725503205317,7.475,133.78,133.74,26.1693]
[1725503205613,1.25310972,133.77,133.74,26.1693]
[1725503205800,8.72760972,133.79,133.75,7.4766]
[1725503206000,1.25310972,133.79,133.74,18.6922]
[1725503206409,1.25310972,133.79,133.75,7.4765]
[1725503207112,1.25310972,133.79,133.75,8.97159329]
[1725503208122,16.6188,133.8,133.71,65.03451124]
[1725503208299,16.6188,133.8,133.76,18.6894]
[1725503209498,16.6188,133.8,133.76,26.1653]
[1725503209712,7.4727,133.82,133.77,7.4753]
[1725503209919,8.72580972,133.82,133.77,7.4753]
[1725503215526,7.4737,133.81,133.76,26.1654]
[1725503215719,1.25310972,133.8,133.76,26.1654]
[1725503215935,7.4738,133.8,133.76,18.6894]
[1725503216118,1.25310972,133.79,133.76,18.6894]
[1725503217423,7.4738,133.8,133.76,26.1654]
[1725503217726,1.25310972,133.82,133.77,7.4754]
[1725503218119,1.25310972,133.82,133.76,26.1653]
[1725503218441,7.4734,133.81,133.77,7.4753]
[1725503219123,8.72590972,133.82,133.77,7.4753]
[1725503221007,7.4734,133.81,133.77,7.4753]
[1725503221216,7.4734,133.81,133.76,26.1653]
[1725503221217,1.25310972,133.8,133.76,26.1653]
[1725503221519,8.72690972,133.8,133.76,26.1653]
[1725503221727,1.25310972,133.79,133.76,18.6894]
[1725503221926,8.72750972,133.79,133.75,7.4764]
[1725503222104,1.25310972,133.78,133.75,7.4764]
[1725503223547,1.25310972,133.78,133.73,18.6936]
[1725503224431,1.25310972,133.78,133.74,7.477]
[1725503225136,1.25310972,133.78,133.75,7.4765]
[1725503226607,8.72820972,133.78,133.73,18.6936]
[1725503226812,7.4751,133.78,133.73,18.6936]
[1725503227215,7.4745,133.79,133.74,7.4771]
[1725503227419,1.25310972,133.78,133.74,7.4771]
[1725503232834,1.25310972,133.78,133.75,7.4766]
[1725503233229,8.72800972,133.78,133.74,7.477]
[1725503233431,1.25310972,133.77,133.74,7.477]
[1725503241457,1.25310972,133.77,133.75,7.4764]
[1725503241643,1.25310972,133.78,133.75,7.4764]
[1725503241837,1.25310972,133.78,133.73,18.6936]
[1725503241838,1.25310972,133.78,133.74,7.477]
[1725503242454,8.72810972,133.78,133.74,7.477]
[1725503244258,1.25310972,133.78,133.74,7.477]
[1725503244956,1.25310972,133.8,133.78,7.4747]
[1725503245361,8.72580972,133.82,133.78,7.4747]
[1725503246561,1.25310972,133.82,133.77,18.6883]
[1725503247574,1.25310972,133.82,133.79,7.4742]
[1725503248436,14.0864,133.84,133.77,18.6883]
[1725503248437,1.25310972,133.84,133.77,37.375]
[1725503248639,1.25310972,133.85,133.82,7.4725]
[1725503258054,8.72410972,133.85,133.81,26.1554]
[1725503273863,7.4722,133.83,133.78,18.6868]
[1725503274064,1.25310972,133.82,133.78,18.6868]
[1725503274266,1.25310972,133.85,133.78,18.6868]
[1725503275394,40.652,133.84,133.74,18.6922]
[1725503275680,61.80790972,133.83,133.74,18.6922]
[1725503275859,1.25310972,133.82,133.74,18.6922]
[1725503276682,7.4734,133.81,133.76,26.1654]
[1725503276880,1.25310972,133.8,133.76,26.1654]
[1725503279484,1.25310972,133.8,133.77,7.4752]
[1725503279785,1.25310972,133.8,133.76,18.6895]
[1725503280666,1.25310972,133.8,133.76,26.1654]
[1725503280866,8.72700972,133.8,133.76,26.1654]
[1725503281071,1.25310972,133.79,133.76,26.1654]
[1725503286592,18.72698583,133.83,133.76,18.6895]
[1725503286593,1.25310972,133.82,133.76,18.6895]
[1725503286793,1.25310972,133.82,133.77,1.49483039]
[1725503287383,1.25310972,133.82,133.76,18.6895]
[1725503287569,15.5548,133.83,133.78,18.6868]
[1725503287773,1.25310972,133.82,133.79,7.4743]
[1725503289169,1.25310972,133.83,133.79,7.4743]
[1725503291074,8.72510972,133.84,133.79,7.4743]
[1725503291285,8.72510972,133.84,133.8,7.4736]
[1725503291481,1.25310972,133.84,133.8,7.4736]
[1725503291698,1.25310972,133.84,133.81,7.4732]
[1725503292193,1.25310972,133.84,133.8,7.4737]
[1725503292591,8.72470972,133.84,133.8,7.4737]
[1725503293787,8.72470972,133.84,133.79,7.4742]
[1725503295592,8.72470972,133.84,133.8,7.4736]
[1725503297702,1.25310972,133.84,133.8,7.4736]
[1725503298675,8.72480972,133.84,133.8,7.4736]
[1725503299088,1.25310972,133.84,133.78,18.6868]
[1725503299397,7.473,133.82,133.78,26.1617]
[1725503299577,1.25310972,133.81,133.78,26.1617]
[1725503299781,8.72650972,133.81,133.78,18.6868]
[1725503299977,8.72690972,133.8,133.76,7.4759]
[1725503300190,8.72690972,133.8,133.75,26.1669]
[1725503310305,8.72650972,133.81,133.76,8.97084704]
[1725503310810,23.75940972,133.82,133.78,7.4749]
[1725503311007,6.4305,133.83,133.79,7.4742]
[1725503311313,8.72510972,133.84,133.79,7.4742]
[1725503313116,8.72510972,133.84,133.8,7.4737]
[1725503313697,7.472,133.84,133.8,7.4737]
[1725503314012,17.56870972,133.85,133.81,7.4731]
[1725503314602,17.56870972,133.85,133.81,18.6819]
[1725503314807,17.56870972,133.85,133.82,7.4727]
[1725503315199,17.56870972,133.85,133.81,26.1551]
[1725503316420,25.03970972,133.85,133.81,18.6819]
[1725503316804,17.56870972,133.85,133.82,7.4724]
[1725503317001,17.56870972,133.85,133.81,26.1551]
[1725503318715,25.03980972,133.85,133.81,26.1551]
[1725503326126,25.03980972,133.85,133.81,18.6819]
[1725503326929,7.4721,133.84,133.78,26.1612]
[1725503327116,1.25310972,133.83,133.78,18.6868]
[1725503327609,8.72520972,133.84,133.79,7.4739]
[1725503329204,25.03990972,133.85,133.8,7.4737]
[1725503329508,8.72360972,133.86,133.81,1.49447175]
[1725503329815,8.72360972,133.86,133.8,18.6834]
[1725503330203,8.72360972,133.86,133.81,1.49430904]
[1725503330404,8.72360972,133.86,133.82,7.4725]
[1725503330605,18.54136649,133.88,133.82,7.4725]
[1725503330606,16.51990972,133.88,133.83,1.49430594]
[1725503330807,15.2668,133.88,133.83,1.49430594]
[1725503331108,15.2668,133.88,133.84,7.4712]
[1725503331426,7.4683,133.9,133.85,7.4708]
[1725503331611,1.25310972,133.89,133.85,7.4708]
[1725503332712,8.72140972,133.9,133.85,7.4708]
[1725503333112,8.72140972,133.9,133.84,18.6785]
[1725503333113,1.25310972,133.9,133.86,7.4704]
[1725503333415,1.25310972,133.91,133.87,7.4697]
[1725503333613,8.72080972,133.91,133.86,26.1457]
[1725503334136,16.51990972,133.92,133.87,1.49372466]
[1725503334332,15.2668,133.92,133.88,8.96277161]
[1725503334833,15.2668,133.92,133.88,7.4692]
[1725503339328,23.98700972,133.92,133.87,7.4698]
[1725503342736,15.2668,133.92,133.88,7.4692]
[1725503343120,7.4667,133.93,133.88,7.4692]
[1725503343432,8.71920972,133.94,133.89,8.96210752]
[1725503344444,7.4661,133.94,133.89,7.4687]
[1725503349522,8.72010972,133.93,133.88,26.1419]
[1725503350530,7.4672,133.92,133.88,18.6727]
[1725503351629,7.4672,133.92,133.88,26.1419]
[1725503351823,1.25310972,133.91,133.85,35.2185]
[1725503352029,7.4678,133.91,133.86,7.47]
[1725503352620,7.4684,133.9,133.86,7.47]
[1725503352819,1.25310972,133.89,133.82,39.9705]
[1725503353840,7.4693,133.88,133.82,39.9705]
[1725503354041,7.4693,133.88,133.83,52.4717]
[1725503357446,7.4693,133.88,133.84,7.4715]
[1725503357747,15.876,133.9,133.83,45.0]
[1725503357748,8.72300972,133.87,133.83,45.0]
[1725503358040,8.72360972,133.86,133.82,18.6809]
[1725503358255,7.4705,133.86,133.82,18.6809]
[1725503367254,7.4715,133.85,133.79,6.2643]
[1725503367428,1.25310972,133.89,133.79,26.1597]
[1725503367629,7.4716,133.84,133.8,7.4736]
[1725503367857,1.25310972,133.89,133.79,18.6859]
[1725503367858,7.4722,133.83,133.79,18.6859]
[1725503368725,7.4717,133.84,133.79,26.16]
[1725503369748,7.4717,133.84,133.8,7.4738]
[1725503373848,7.4717,133.84,133.79,26.1601]
[1725503376748,8.72530972,133.83,133.79,26.1601]
[1725503377131,7.4717,133.84,133.79,26.1601]
[1725503377354,7.4717,133.84,133.8,7.4736]
[1725503381743,7.4711,133.85,133.8,7.4736]
[1725503382346,1.25310972,133.87,133.83,7.4717]
[1725503382660,17.65440972,133.88,133.83,7.4717]
[1725503383088,17.65440972,133.88,133.82,18.6814]
[1725503383089,7.47,133.87,133.82,26.154]
[1725503383444,17.65440972,133.88,133.82,26.154]
[1725503383445,7.4705,133.86,133.82,26.154]
[1725503386668,8.72410972,133.85,133.82,18.6814]
[1725503386866,7.471,133.85,133.82,18.6814]
[1725503387170,7.471,133.85,133.8,7.4732]
[1725503395377,7.4721,133.84,133.79,26.1594]
[1725503395562,7.4721,133.84,133.8,46.49431581]
[1725503395767,7.4705,133.86,133.82,7.4726]
[1725503398383,7.47,133.87,133.83,7.4719]
[1725503398560,23.871,133.88,133.83,7.4719]
[1725503399986,23.871,133.88,133.82,7.4723]
[1725503399987,8.72320972,133.87,133.82,7.4723]
[1725503403172,8.72320972,133.87,133.79,7.4741]
[1725503403173,7.4721,133.84,133.79,7.4741]
[1725503404265,7.4722,133.83,133.79,7.4741]
[1725503406966,7.4722,133.83,133.78,26.1613]
[1725503408083,7.4733,133.81,133.76,7.4755]
[1725503408286,7.4733,133.81,133.77,7.4754]
[1725503408479,8.72590972,133.82,133.77,7.4754]
[1725503408981,1.25310972,133.81,133.77,7.4754]
[1725503409285,8.72650972,133.81,133.77,7.4754]
[1725503409493,7.4734,133.81,133.77,7.4754]
[1725503410186,7.4734,133.81,133.76,7.4759]
[1725503410390,1.25310972,133.8,133.75,26.1672]
[1725503410566,7.4744,133.79,133.75,18.6908]
[1725503412066,7.4738,133.8,133.75,18.6908]
[1725503413491,7.4738,133.8,133.75,26.1672]
[1725503414291,7.4738,133.8,133.76,1.49494174]
[1725503414474,7.4738,133.8,133.75,26.1672]
[1725503414984,4.51492019,133.83,133.76,7.4759]
[1725503414985,7.4734,133.81,133.76,7.4759]
[1725503415194,7.4738,133.8,133.76,7.4759]
[1725503417989,8.72760972,133.79,133.75,26.1673]
[1725503418193,7.4745,133.79,133.75,26.1673]
[1725503418995,7.4745,133.79,133.75,18.6908]
[1725503419993,7.4745,133.79,133.75,26.1673]
[1725503420392,7.4739,133.8,133.75,26.1673]
[1725503421373,7.4739,133.8,133.76,7.476]
[1725503421595,7.4733,133.81,133.77,7.4755]
[1725503422088,8.72530972,133.83,133.78,7.4748]
[1725503422973,7.4729,133.82,133.78,7.4748]
[1725503423782,7.4729,133.82,133.77,26.1635]
[1725503424093,7.4729,133.82,133.78,45.0]
[1725503428100,7.4729,133.82,133.78,52.4748]
[1725503428304,8.72530972,133.83,133.78,45.0]
[1725503428606,8.72530972,133.83,133.78,52.4748]
[1725503430789,1.25310972,133.83,133.76,7.4759]
[1725503430974,7.4747,133.79,133.74,26.1688]
[1725503436080,7.4747,133.79,133.7,18.78931124]
[1725503436081,7.4755,133.77,133.73,7.4776]
[1725503436387,1.25310972,133.76,133.69,7.4798]
[1725503436699,45.0,133.78,133.69,7.4798]
[1725503437277,7.4778,133.73,133.69,7.4798]
[1725503439599,8.73140972,133.72,133.68,26.181]
[1725503439804,8.73140972,133.72,133.68,18.7005]
[1725503443291,8.73140972,133.72,133.68,26.1809]
[1725503445175,15.8194,133.74,133.7,18.6979]
[1725503445400,17.07250972,133.74,133.7,18.6979]
[1725503446009,17.07250972,133.74,133.7,26.1771]
[1725503447893,1.25310972,133.73,133.7,26.1771]
[1725503448097,17.07250972,133.74,133.7,26.1771]
[1725503454714,15.8194,133.74,133.71,7.4786]
[1725503455086,6.1162,133.75,133.71,7.4786]
[1725503455289,8.72930972,133.76,133.71,7.4786]
[1725503460207,8.72930972,133.76,133.72,7.4782]
[1725503464126,8.72930972,133.76,133.71,7.4787]
[1725503465222,15.1486,133.78,133.75,7.4764]
[1725503465402,24.29910972,133.8,133.76,1.4950059]
[1725503465600,16.82510972,133.8,133.76,7.476]
[1725503466217,16.82510972,133.8,133.77,7.4753]
[1725503466402,16.82510972,133.8,133.76,26.1656]
[1725503467823,7.4733,133.81,133.77,7.4754]
[1725503468030,7.4727,133.82,133.77,7.4754]
[1725503469023,7.4727,133.82,133.78,7.4749]
[1725503470008,8.72630972,133.81,133.77,7.4753]
[1725503470213,1.25310972,133.8,133.77,7.4753]
[1725503470426,7.4732,133.81,133.76,26.1656]
[1725503471108,7.4728,133.82,133.77,7.4755]
[1725503471832,7.4728,133.82,133.76,18.6897]
[1725503471833,24.71180972,133.84,133.79,7.4743]
[1725503472215,7.4721,133.83,133.79,7.4743]
[1725503473639,24.71150972,133.84,133.79,7.4743]
[1725503475009,7.4722,133.83,133.78,26.1616]
[1725503475215,1.25310972,133.82,133.78,26.1616]
[1725503475415,8.72530972,133.83,133.78,26.1616]
[1725503476026,7.4742,133.8,133.75,26.1675]
[1725503476323,8.72780972,133.79,133.75,18.6911]
[1725503476523,8.72800972,133.78,133.74,7.4771]
[1725503476729,7.4749,133.78,133.74,7.4771]
[1725503477118,7.4749,133.78,133.73,7.4776]
[1725503478520,7.4744,133.79,133.74,52.4771]
[1725503480232,7.475,133.78,133.74,45.0]
[1725503480416,7.475,133.78,133.73,7.4776]
[1725503481237,1.25310972,133.82,133.74,7.4771]
[1725503481427,7.4744,133.79,133.74,7.4771]
[1725503481610,7.4739,133.8,133.75,7.4766]
[1725503482014,7.4739,133.8,133.76,1.49487392]
[1725503482733,7.4739,133.8,133.75,7.4766]
[1725503483125,7.4739,133.8,133.76,52.4759]
[1725503483311,1.25310972,133.82,133.76,52.4759]
[1725503483650,1.25310972,133.82,133.77,7.4753]
[1725503483825,7.4732,133.82,133.77,7.4753]
[1725503484214,7.4723,133.83,133.78,8.96941362]
[1725503484628,7.4723,133.83,133.78,7.4748]
[1725503486734,15.9867,133.84,133.76,63.6895]
[1725503486735,7.474,133.8,133.76,26.1654]
[1725503486942,1.25310972,133.82,133.76,26.1654]
[1725503487346,7.4734,133.81,133.76,26.1654]
[1725503488714,7.4734,133.81,133.77,7.4754]
[1725503489539,7.4727,133.82,133.77,7.4754]
[1725503489733,7.4727,133.82,133.76,18.6895]
[1725503489734,7.4727,133.82,133.78,7.4747]
[1725503489941,15.9867,133.84,133.79,8.96884754]
[1725503490124,15.9867,133.84,133.8,1.49445039]
[1725503491333,23.4583,133.84,133.8,1.49445039]
[1725503492122,7.4716,133.84,133.8,1.49445039]
[1725503492728,7.4716,133.84,133.79,7.4743]
[1725503493848,7.4716,133.84,133.8,52.4737]
[1725503494048,1.25310972,133.86,133.8,52.4737]
[1725503494049,7.4712,133.85,133.8,52.4737]
[1725503495236,8.72370972,133.86,133.81,7.4732]
[1725503495441,7.4706,133.86,133.81,7.4732]
[1725503496626,7.4706,133.86,133.8,63.6839]
[1725503496827,8.72190972,133.89,133.84,7.4712]
[1725503497124,7.4688,133.89,133.85,1.493942]
[1725503497331,7.4693,133.88,133.84,7.4714]
[1725503497532,1.25310972,133.87,133.81,6.1918]
[1725503497744,1.25310972,133.87,133.8,45.0]
[1725503497952,7.4716,133.84,133.79,26.1594]
[1725503498232,7.4727,133.82,133.76,34.3109]
[1725503498545,7.4727,133.82,133.77,7.475]
[1725503499347,7.4717,133.84,133.79,7.4743]
[1725503502158,1.25310972,133.85,133.8,7.4736]
[1725503502363,7.4716,133.84,133.8,7.4736]
[1725503502654,7.4716,133.84,133.79,26.1597]
[1725503512057,7.4716,133.84,133.8,7.4736]
[1725503512743,16.5722,133.86,133.79,18.6854]
[1725503512942,16.5722,133.86,133.8,45.0]
[1725503513471,24.043,133.86,133.82,7.4727]
[1725503514558,24.043,133.86,133.81,7.4731]
[1725503514759,1.25310972,133.85,133.8,52.4738]
[1725503515061,8.72430972,133.85,133.8,7.4738]
[1725503516140,8.72430972,133.85,133.77,37.3755]
[1725503516141,8.72250972,133.88,133.83,7.4717]
[1725503516335,8.72200972,133.89,133.84,7.4711]
[1725503516540,8.72200972,133.89,133.81,37.3657]
[1725503516762,7.4689,133.89,133.82,45.0]
[1725503517352,8.72200972,133.89,133.85,7.4707]
[1725503517668,8.72200972,133.89,133.84,7.4714]
[1725503518245,7.4689,133.89,133.85,7.4709]
[1725503520057,28.5608,133.9,133.86,7.4704]
[1725503520257,22.5376,133.9,133.86,7.4704]
[1725503520456,7.4684,133.9,133.87,1.49366992]
[1725503521165,21.7199,133.93,133.88,1.4936683]
[1725503521349,7.4672,133.92,133.87,18.6741]
[1725503521663,7.4672,133.92,133.88,1.49351342]
[1725503522161,1.25310972,133.95,133.89,20.16491046]
[1725503522366,1.25310972,133.95,133.9,1.49328674]
[1725503522953,8.71900972,133.95,133.9,8.96138674]
[1725503523148,7.4661,133.94,133.9,8.96138674]
[1725503523360,7.4661,133.94,133.9,7.4681]
[1725503523570,1.25310972,133.95,133.89,18.6714]
[1725503523964,1.25310972,133.95,133.87,7.4698]
[1725503524461,7.4675,133.92,133.87,7.4698]
[1725503526083,7.4675,133.92,133.88,7.4692]
[1725503526458,7.4666,133.93,133.89,7.4687]
[1725503527658,7.4661,133.94,133.89,7.4687]
[1725503534392,29.9199,133.96,133.91,7.4675]
[1725503534675,8.71700972,133.98,133.93,7.4661]
[1725503534875,7.4639,133.98,133.94,1.49285759]
[1725503535370,7.4639,133.98,133.93,7.4661]
[1725503536253,7.4633,133.99,133.94,8.9587654]
[1725503536675,8.71640972,133.99,133.94,8.9587654]
[1725503537267,7.4633,133.99,133.94,7.4659]
[1725503537973,22.6515,134.0,133.95,52.4653]
[1725503538159,0.8684518,134.02,133.95,45.0]
[1725503538363,0.8684518,134.02,133.98,7.4633]
[1725503541269,0.8684518,134.02,133.99,45.0]
[1725503541762,0.8684518,134.02,133.99,52.4631]
[1725503542156,0.8684518,134.02,134.01,7.4621]
[1725503542361,0.8684518,134.02,134.01,52.4621]
[1725503542583,0.8684518,134.02,134.01,53.95395557]
[1725503542761,0.8684518,134.02,134.01,52.4621]
[1725503544359,0.8684518,134.02,134.01,7.4621]
[1725503545182,0.8684518,134.02,133.99,18.6572]
[1725503547075,0.8684518,134.02,133.99,26.1203]
[1725503549875,0.8684518,134.02,134.0,1.49224719]
[1725503550195,0.8684518,134.02,134.0,7.4626]
[1725503550682,0.8684518,134.02,134.01,52.4621]
[1725503554976,0.8684518,134.02,134.01,7.4621]
[1725503555580,0.8684518,134.02,134.0,7.4625]
[1725503557681,0.8684518,134.02,133.99,18.6572]
[1725503562599,0.8684518,134.02,134.0,1.49217413]
[1725503562790,0.8684518,134.02,134.0,8.95467413]
[1725503563483,0.8684518,134.02,134.0,7.4625]
[1725503563795,0.8684518,134.02,133.99,26.1204]
[1725503563991,0.8684518,134.02,133.93,103.16959847]
[1725503563992,2.12156152,134.02,133.93,16.6446]
[1725503564199,7.4632,133.99,133.93,35.3102]
[1725503564573,7.4632,133.99,133.93,42.7762]
[1725503564777,7.4632,133.99,133.94,7.4658]
[1725503564985,8.71720972,133.98,133.93,18.6656]
[1725503565182,22.9253,133.97,133.93,18.6656]
[1725503566288,15.461,133.97,133.93,26.132]
[1725503566489,21.3992,134.0,133.94,45.0]
[1725503566793,1.25310972,133.99,133.94,45.0]
[1725503567192,21.3992,134.0,133.94,45.0]
[1725503567404,7.4633,133.99,133.94,52.4659]
[1725503568403,8.71690972,133.98,133.93,26.1321]
[1725503568607,7.4638,133.98,133.93,26.1321]
[1725503568790,7.4652,133.96,133.91,7.4672]
[1725503568991,7.4644,133.97,133.92,52.467]
[1725503569300,7.4644,133.97,133.93,7.4665]
[1725503569501,7.4638,133.98,133.93,7.4665]
[1725503574408,7.4632,133.99,133.94,7.4658]
[1725503574596,7.4632,133.99,133.94,52.4658]
[1725503581190,7.4632,133.99,133.95,7.4652]
[1725503581402,7.4626,134.0,133.96,1.49266351]
[1725503581593,4.06845434,134.02,133.94,52.4658]
[1725503581594,7.4633,133.99,133.94,52.4658]
[1725503582502,7.4638,133.98,133.94,52.4658]
[1725503582705,1.25310972,134.01,133.93,26.1319]
[1725503583298,1.25310972,134.01,133.9,15.6878]
[1725503583299,7.4656,133.95,133.91,7.4676]
[1725503584205,1.25310972,133.98,133.91,7.4676]
[1725503584392,7.4649,133.96,133.91,7.4676]
[1725503585091,7.4649,133.96,133.92,7.467]
[1725503585296,7.4649,133.96,133.93,1.49297087]
[1725503586298,7.4649,133.96,133.92,7.467]
[1725503587516,1.25310972,133.98,133.94,7.4659]
[1725503587715,15.3905,133.99,133.92,1.49289707]
[1725503587918,7.4642,133.98,133.93,7.4664]
[1725503588305,8.71730972,133.98,133.93,7.4664]
[1725503588697,7.4644,133.97,133.93,7.4664]
[1725503589022,7.4638,133.98,133.94,46.49290937]
[1725503589504,7.4638,133.98,133.94,45.0]
[1725503589703,7.4633,133.99,133.94,45.0]
[1725503589905,7.4633,133.99,133.94,52.4659]
[1725503590102,1.25310972,134.01,133.94,45.0]
[1725503590305,1.25310972,134.0,133.9,34.3577]
[1725503590502,1.25310972,134.0,133.91,45.0]
[1725503591311,7.4649,133.96,133.92,7.467]
[1725503596415,7.4649,133.96,133.91,52.4675]
[1725503601631,1.25310972,133.95,133.91,45.0]
[1725503601931,7.4661,133.94,133.9,18.6699]
[1725503602509,7.4672,133.92,133.88,7.4691]
[1725503606320,7.4672,133.92,133.87,26.1437]
[1725503606620,7.4672,133.92,133.88,1.49353114]
[1725503607834,7.4672,133.92,133.88,7.4691]
[1725503608035,7.4667,133.93,133.88,7.4691]
[1725503609234,7.4667,133.93,133.87,18.6739]